Cogmind - Beta 12 @@@ ROGUE MODE // 2023.11.10 @ 13:29:59 Player: Blaj Result: Destroyed by H-55 Commando with Gauss Rifle Performance ------------- Evolutions (0) 0 Regions Visited (3) 600 Robots Destroyed (31) 155 Value Destroyed (461) 461 Prototype IDs (23) 460 Alien Tech Used (0) 0 Bonus (300) 300 TOTAL SCORE: 1976 Bonus ------- Aligned with FarCom 300 Cogmind --------- Core Integrity 0/250 Matter 274/300 Energy 263/265 System Corruption 1% Temperature Cool (7) Movement Walking (330) Ox3 Location -10/Exiles Parts ------- > --- POWER (1) -------- Improved Ion Engine > --- PROPULSION (2) --- Aluminum Leg > --- UTILITY (2) ------ Large Storage Unit > --- WEAPON (2) ------- Great Maul Katana > --- INVENTORY (15) --- Deuterium Engine Nuclear Core Aluminum Leg Structural Scanner Transport Network Coupler Light Armor Plating Light Armor Plating Light Armor Plating Grenade Launcher Rocket Launcher Datajack Mining Laser Peak State ------------ > --- POWER ------------ Improved Ion Engine > --- PROPULSION ------- Aluminum Leg Aluminum Leg > --- UTILITY ---------- Large Storage Unit Seismic Detector > --- WEAPON ----------- Great Maul Katana > --- INVENTORY -------- Deuterium Engine Nuclear Core Aluminum Leg Structural Scanner Transport Network Coupler Light Armor Plating Light Armor Plating Light Armor Plating Light Cannon Light Cannon Grenade Launcher Rocket Launcher Datajack Mining Laser [Rating: 13] Favorites ----------- Power Improved Ion Engine Engine Improved Ion Engine Propulsion Aluminum Leg Leg Aluminum Leg Utility Large Storage Unit Device Seismic Detector Storage Large Storage Unit Protection Light Armor Plating Weapon Light Cannon Energy Gun Medium Laser Ballistic Gun Assault Rifle Ballistic Cannon Light Cannon Launcher Grenade Launcher Special Weapon Mining Laser Impact Weapon Great Maul Slashing Weapon Katana Build | -11 -10 -10 -10 ------- Run | Jun Mat Min Exi Slots Evolved . | . . . . Power . | . . . . Propulsion . | . . . . Utility . | . . . . Weapon . | . . . . Parts Attached 20 | 2 15 1 2 Power 1 | . 1 . . Engine 1 | . 1 . . Core . | . . . . Reactor . | . . . . Propulsion 2 | . 2 . . Treads . | . . . . Leg 2 | . 2 . . Wheel . | . . . . Hover . | . . . . Flight . | . . . . Utility 4 | 1 3 . . Device 2 | 1 1 . . Storage 1 | . 1 . . Processor . | . . . . Hackware . | . . . . Protection 1 | . 1 . . Artifact . | . . . . Weapon 13 | 1 9 1 2 Energy Gun 1 | . 1 . . Energy Cannon . | . . . . Ballistic Gun 2 | 1 1 . . Ballistic Cannon 5 | . 5 . . Launcher 2 | . 1 1 . Special Weapon 1 | . 1 . . Impact Weapon 1 | . . . 1 Slashing Weapon 1 | . . . 1 Piercing Weapon . | . . . . Special Melee Weapon . | . . . . Unidentified Prototypes . | . . . . Parts Lost 3 | . 1 . 2 Power . | . . . . Propulsion 2 | . 1 . 1 Utility 1 | . . . 1 Weapon . | . . . . Highest Loss Streak 2 | . 1 . 2 To Critical Strikes . | . . . . Average Slot Usage (%) 99 | . 99 100 100 Engine 14 | . 14 14 14 Leg 28 | . 28 28 28 Device 8 | . 4 14 14 Storage 14 | . 14 14 14 Protection 5 | . 9 . . Energy Gun 1 | . 2 . . Ballistic Gun 1 | . 3 . . Ballistic Cannon 12 | . 17 14 . Launcher 3 | . . 14 . Special Weapon 2 | . 3 . . Impact Weapon 3 | . . . 14 Slashing Weapon 3 | . . . 14 Naked Turns . | . . . . Heaviest Build 36 | 13 36 34 34 Greatest Support 20 | 20 20 20 20 Greatest Overweight (x) 3 | . 1 1 3 Average Overweight (x) . | . . 1 1 Largest Inventory Capacity 15 | 8 15 15 15 Average Capacity 12 | 8 11 15 15 Most Carried 15 | 6 10 15 15 Average Carried 9 | 1 7 12 12 Final Capacity 15 | 8 15 15 15 Final Carried 14 | 2 9 14 12 Class Distribution -------------------- 100% | Mutant Dominant Class ---------------- Mutant | -10/Materials Mutant | -10/Mines Mutant | -10/Exiles Resources | -11 -10 -10 -10 ----------- Run | Jun Mat Min Exi Matter Collected 724 | 232 403 89 . Remotely . | . . . . Salvage Created 653 | 99 516 38 . Parts 48 | 6 31 11 . Haulers Intercepted 2 | . 2 . . Recyclers Shooed 2 | 1 1 . . Parts Field Recycled . | . . . . Retrieved Matter . | . . . . Parts Self-Destructed . | . . . . Prevented . | . . . . Kills | -11 -10 -10 -10 ------- Run | Jun Mat Min Exi Combat Hostiles Destroyed 16 | . 10 6 . Guns 4 | . 4 . . Cannons 6 | . 6 . . AOE 6 | . . 6 . Classes Destroyed 9 | 2 7 . . Worker 5 | . 4 1 . Builder 2 | . 2 . . Tunneler 2 | 2 . . . Hauler 2 | . 2 . . Recycler 1 | 1 . . . Operator 1 | . 1 . . Watcher 2 | . 2 . . Swarmer 9 | . 3 6 . Grunt 7 | . 7 . . Best Kill Streak 5 | 2 5 4 . Combat Bots Only 5 | . 5 3 . Max Kills in Single Turn 2 | 1 1 2 . Gunslinging . | . . . . Exploded 2 | . . 2 . Melee . | . . . . Uniques/NPCs Destroyed . | . . . . Combat | -11 -10 -10 -10 -------- Run | Jun Mat Min Exi Damage Taken 793 | . 553 68 172 Core 267 | . 171 7 89 Absorbed by Shields . | . . . . Regen/Repaired (Parts) 96 | . 96 . . Core Remaining (%) 100 | 100 . . . Volleys Fired 75 | 4 66 5 . Largest 2 | 2 2 1 . Hottest 135 | 70 135 30 . Shots Fired 127 | 8 114 5 . Gun 51 | 8 43 . . Cannon 58 | . 58 . . Launcher 6 | . 1 5 . Special 12 | . 12 . . Kinetic 79 | 4 75 . . Thermal 42 | 4 38 . . Explosive 6 | . 1 5 . Electromagnetic . | . . . . Robot Hit Streak 9 | 4 9 . . Robot Miss Streak 3 | 1 3 2 . Penetration Max . | . . . . Secondary Targets . | . . . . Shots Hit Robots 66 | 7 59 . . Core Hits 38 | 4 27 7 . Critical Kills . | . . . . Critical Parts Destroyed . | . . . . Critical Strikes 4 | . 4 . . Burn 2 | . 2 . . Blast 2 | . 2 . . Melee Attacks . | . . . . Impact . | . . . . Slashing . | . . . . Piercing . | . . . . Sneak Attacks . | . . . . Combat Hostiles . | . . . . Follow-up Attacks . | . . . . Damage Inflicted 1466 | 90 1062 314 . Guns 394 | 90 304 . . Cannons 703 | . 703 . . Explosions 355 | . 41 314 . Melee . | . . . . Ramming 14 | . 14 . . Kinetic 852 | 40 812 . . Thermal 245 | 50 195 . . Explosive 355 | . 41 314 . Electromagnetic . | . . . . Impact . | . . . . Slashing . | . . . . Piercing . | . . . . Highest Corruption 1 | . 1 1 1 Average Corruption 1 | . 1 1 1 Corruption Purged . | . . . . Corruption Blocked . | . . . . Effects 17 | . 8 4 5 Message Errors 2 | . 2 . . Matter Fused 4 | . 1 1 2 Heat Flow Errors 5 | . 2 2 1 Energy Discharges 1 | . . . 1 Data Loss (major) 2 | . 1 . 1 Misfires 2 | . 2 . . Alerts 1 | . . 1 . Overload Shots . | . . . . Overflow Damage 11 | . 7 4 . Projectiles . | . . . . Explosions 11 | . 7 4 . Melee . | . . . . Knockbacks 10 | . 10 . . Impact . | . . . . Kinetic 9 | . 9 . . Secondary 1 | . 1 . . Self-Inflicted Damage 72 | . 40 32 . Shots 3 | . 1 2 . Rammed . | . . . . Targets Rammed 5 | . 5 . . Kicked 5 | . 5 . . Crushed . | . . . . Highest Temperature 297 | 27 297 179 162 Average Temperature 63 | 12 64 81 80 Received Heat Transfer 261 | . 255 . 6 Effects 3 | . 3 . . Interference 3 | . 3 . . Siege Activations . | . . . . Robots Corrupted . | . . . . Combat Hostiles . | . . . . Parts Fried 2 | . 2 . . Impact Corruptions 1 | . 1 . . Robots Melted . | . . . . Combat Hostiles . | . . . . Parts Melted 1 | . 1 . . Heat Transferred 852 | 148 704 . . Parts Sabotaged . | . . . . Parts Stolen . | . . . . Parts Stripped . | . . . . Power Chain Reactions . | . . . . Missiles Intercepted . | . . . . Alert | -11 -10 -10 -10 ------- Run | Jun Mat Min Exi Peak Influence 319 | 15 319 210 . Initial 9 | . 9 1 . Average 108 | 9 110 114 . Maximum Alert Level 1 | . 1 1 . Low Security (%) 72 | 100 77 57 . Level 1 27 | . 22 42 . Level 2 . | . . . . Level 3 . | . . . . Level 4 . | . . . . Level 5 . | . . . . High Security . | . . . . Max Security . | . . . . Squads Dispatched 2 | . 1 1 . Investigation 1 | . . 1 . Extermination . | . . . . Reinforcement 1 | . 1 . . Assault . | . . . . Garrison . | . . . . Intercept . | . . . . Searches Triggered . | . . . . Construction Impeded . | . . . . Haulers Reinforced . | . . . . Active Scanning Responses . | . . . . Cargo Convoy Interrupts . | . . . . Stealth | -11 -10 -10 -10 --------- Run | Jun Mat Min Exi Distress Signals 4 | . 4 . . Communications Jammed . | . . . . Distress Signals . | . . . . Times Spotted 28 | . 19 6 3 Peak Tracking Total 7 | . 7 3 4 Tactical Retreats . | . . . . Traps | -11 -10 -10 -10 ------- Run | Jun Mat Min Exi Traps Triggered . | . . . . Indirectly . | . . . . Trap Hack Attempts . | . . . . Triggered . | . . . . Disarmed . | . . . . Reprogrammed . | . . . . Reused . | . . . . Traps Extracted . | . . . . Installed . | . . . . Triggered . | . . . . Machines | -11 -10 -10 -10 ---------- Run | Jun Mat Min Exi Machines Disabled 2 | . 1 1 . Max in Single Turn 1 | . 1 1 . Machines Repaired . | . . . . Machines Sabotaged . | . . . . Overloaded Fab Kills . | . . . . Hacking | -11 -10 -10 -10 --------- Run | Jun Mat Min Exi Machines Accessed 10 | . 7 1 2 Terminals 6 | . 6 . . Fabricators . | . . . . Repair Stations 1 | . 1 . . Recycling Units . | . . . . Scanalyzers . | . . . . Garrison Access . | . . . . Total Hacks 33 | . 30 1 2 Successful 15 | . 12 1 2 Failed 18 | . 18 . . Catastrophic 1 | . 1 . . Database Lockouts . | . . . . Manual 25 | . 24 . 1 Terminals 28 | . 28 . . Fabricators . | . . . . Repair Stations 2 | . 2 . . Recycling Units . | . . . . Scanalyzers . | . . . . Garrison Access . | . . . . Terminal Hacks 9 | . 6 1 2 Record 1 | . . . 1 Robot Analysis 4 | . 4 . . Open Door 1 | . . 1 . Branch Access Points 1 | . 1 . . Zone Layout 1 | . 1 . . EX-Prototype ID Bank 1 | . . . 1 Fabricator Hacks . | . . . . Repair Station Hacks 2 | . 2 . . Scan Component 1 | . 1 . . Repair 1 | . 1 . . Recycling Unit Hacks . | . . . . Scanalyzer . | . . . . Garrison Access Hacks . | . . . . Unauthorized Hacks 4 | . 4 . . Terminals 4 | . 4 . . Botnet 3 | . 3 . . Operators 1 | . 1 . . Fabricators . | . . . . Repair Stations . | . . . . Recycling Units . | . . . . Scanalyzers . | . . . . Garrison Access . | . . . . Data Cores Recovered . | . . . . Used . | . . . . Hacking Detections 7 | . 7 . . Full Trace Events 1 | . 1 . . Feedback Events 1 | . 1 . . Corruption 1 | . 1 . . Feedback Blocked . | . . . . Robot Schematics Acquired . | . . . . Robots Built . | . . . . Authchips . | . . . . Time . | . . . . Total Robot Build Rating . | . . . . Part Schematics Acquired . | . . . . Parts Built . | . . . . Authchips . | . . . . Time . | . . . . Total Part Build Rating . | . . . . Parts Repaired 1 | . 1 . . Time 26 | . 26 . . Parts Recycled . | . . . . Recycled Matter . | . . . . Retrieved Matter . | . . . . Retrieved Components . | . . . . Parts Scanalyzed . | . . . . Part Schematics Acquired . | . . . . Parts Damaged . | . . . . Bothacking | -11 -10 -10 -10 ------------ Run | Jun Mat Min Exi Used RIF Installer . | . . . . Robots Hacked . | . . . . Non-combat . | . . . . Combat . | . . . . Robot Hacks Applied . | . . . . Relay Couplers Released . | . . . . Fabnet Peak Effective % . | . . . . Robots Rewired . | . . . . Allies Hacked . | . . . . Hacks Repelled . | . . . . Allies | -11 -10 -10 -10 -------- Run | Jun Mat Min Exi Total Allies . | . . . . Largest Group . | . . . . Highest-Rated Group . | . . . . Highest-Rated Ally . | . . . . Total Orders . | . . . . Ally Attacks . | . . . . Total Damage . | . . . . Kills . | . . . . Allies Corrupted . | . . . . Allies Melted . | . . . . Intel | -11 -10 -10 -10 ------- Run | Jun Mat Min Exi Robot Analysis Total 4 | . 4 . . Derelict Logs Recovered 2 | . . 2 . Drone Launches . | . . . . Drone Recoveries . | . . . . Exploration | -11 -10 -10 -10 ------------- Run | Jun Mat Min Exi Turns Passed 2876 | 76 1549 639 612 Spaces Moved 1486 | 19 821 326 320 Core . | . . . . Treads . | . . . . Legs 1486 | 19 821 326 320 Wheels . | . . . . Hover . | . . . . Flight . | . . . . Fastest Speed 120 | 120 120 190 190 Average Speed 167 | 120 150 190 190 Slowest Speed 330 | 120 190 190 330 Overloaded Moves . | . . . . Propulsion Burnouts . | . . . . Robots Hopped . | . . . . Cave-ins Triggered . | . . . . Exploration Rate (%) 62 | 2 97 88 61 Regions Visited 3 Branch Regions 2 Pre-discovered Areas 1 | . . . 1 Known Exits Taken 1 | . 1 . . Unknown Exits Taken 2 | 1 . 1 . Scrap Searched 1 | . . 1 . Spaces Dug 27 | . 12 15 . Terrain Destroyed 46 | . 21 25 . Melee . | . . . . Projectile 12 | . 12 . . AOE 34 | . 9 25 . Terrain Rammed . | . . . . Walls Destroyed . | . . . . Machines Disabled . | . . . . Actions | -11 -10 -10 -10 --------- Run | Jun Mat Min Exi Total 1735 | 65 1002 342 326 Wait 113 | 35 76 2 . Move 1483 | 18 820 325 320 Hop . | . . . . Pick Up 19 | 1 11 7 . Fast Attach 5 | 1 4 . . Attach 4 | . 2 . 2 Detach 3 | . 1 . 2 Swap 11 | 1 9 1 . Drop 17 | 5 8 2 2 Fire 75 | 4 66 5 . Melee . | . . . . Ram . | . . . . Kick 5 | . 5 . . Crush . | . . . . Escape Stasis . | . . . . Rewire . | . . . . Trap . | . . . . Miscellaneous . | . . . . Route ------- -11/Junkyard -10/Materials (discovered 4 exits: [*Mat x3] / *Min) -10/Mines (discovered 3 exits: [*Mat x2] / *Exi) -10/Exiles (discovered 1 exit: [*Min]) History --------- Turn | Location | Event 1 | -11/Junkyard | Discovered new exit (range 1) 77 | -11/Junkyard | Entered Materials 290 | -10/Materials | Discovered new exit (range 17) 290 | -10/Materials | Identified exit to Mines 307 | -10/Materials | Core integrity fell below 50% 309 | -10/Materials | Build established: Mutant 549 | -10/Materials | Repaired Lgt. Cannon 673 | -10/Materials | Discovered new exit (range 16) 872 | -10/Materials | Discovered new exit (range 16) 1626 | -10/Materials | Entered Mines 1640 | -10/Mines | Met a Derelict bent on vengeance 1784 | -10/Mines | Learned Materials terminal intel 1839 | -10/Mines | Met a Derelict shopkeep closing up shop 1883 | -10/Mines | Discovered new exit (range 4) 1973 | -10/Mines | Learned Materials trap positions 1992 | -10/Mines | Discovered new exit (range 13) 2056 | -10/Mines | Received a Rocket Launcher from a helpful Derelict 2256 | -10/Mines | Deemed a non-threat by the Exiles lab entrance 2258 | -10/Mines | Discovered new exit (range 5) 2265 | -10/Mines | Entered Exiles 2315 | -10/Exiles | Met 8R-AWN 2349 | -10/Exiles | Met EX-HEX 2423 | -10/Exiles | Met EX-DEC 2433 | -10/Exiles | Learned location of Zion (-7) 2469 | -10/Exiles | Met EX-BIN 2496 | -10/Exiles | Aligned with FarCom system 2497 | -10/Exiles | Given EX-Vault access code 2541 | -10/Exiles | Opened EX-Vault 2618 | -10/Exiles | Exiles lab attacked by MAIN.C 2798 | -10/Exiles | Discovered new exit (range 14) 2869 | -10/Exiles | Core integrity fell below 20% 2877 | -10/Exiles | Destroyed by H-55 Commando with Gauss Rifle Last Messages --------------- Longsword +1 Deploy-a-Sentry 02604_ System corrupted: Heat flow error (+179). 02618_ EXILES: Incoming Unaware force detected on approach from Mines. Prepare for evacuation. 02630_ EX-BIN seems to be suffering from a case of analysis paralysis. 02653_ EXILES: Lab perimeter alert, evacuate immediately. 02654_ 8R-AWN: "We've got company!" 02655_ EX-BIN: "Not cool, MAIN.C, I don't even have my SDF Cannon ready..." 02658_ 8R-AWN: "I'll cover you all, get out of here!" 02785_ System corrupted: Matter fused (-9). 02798_ EXIT=FOUND 02856_ System corrupted: Energy discharge (-60). 02868_ Penetrated by Slug. 02872_ Aluminum Leg destroyed. 02875_ System corrupted: Matter fused (-6). 02875_ Penetrated by Slug. 02875_ Seismic Detector destroyed. 02875_ Machine disabled. 02877_ Penetrated by Slug. Map ----- +----------------------------------------------------+ | ???????????????????????????????????????#""X" | | ???????????????????????????????????????#" | | ???????????????????????????????????????#" ## | | ##?????????????????????????????????????#""""""## | | #?????????????????????????????????????##"###### | | ##????????????????????????????????????? "#????# | | #?????????????????????????????????????""" #????# | | ##???????????????????????????????????#""" #???## | | #????????????#######??????????????????"" #???#" | | #######??????#!!! "#???????????????????###???#" | | #""##?????# "#?????????????????????????#" | | #?????# "#?????????????????????????#" | | ##???## ""#????????????####?????????#" | | #####" ""#???????????? """????????#" | | ##" ""#????????????" """#???????## | | # #"" #??????????????" #????????# | | #"## #?????????????"" #????????#" | | ####### ##????????????"" "#????????#" | | ??????### "#???????????? ""?????????#" | | ?????###" ###???????????" "?????????##" | | ????""""" ##??????????# #????????##"" | | ?! "###" ######???### ###?######"" | | #! "#?##" """#####X# #"###""""""" | | #! ##??#" """""" " "" | | # !""""""###???#"# "" """ " | | #########??????#### @ " " | | ??????????????????### | | ????????????????????### | | ??????????????????????## h | | ???????????????????????## | | ????????????????????????##" | | ?????????????????????????#"" h """"" | | ?????????????????????????#" ###### | | ?????????????????????????"" g ""##????# | | ?????????????????????????"" % """##?????? | | ?????????????????????????"" """##??????? | | ??????????????????????????" ""#???????? | | ?????????????????????????" ##???????? | | ?????????????????????????"" ????????? | | ?????????????????????????? ?????????? | | ??????????????????????????" ?????????? | | ????????????????????????????" ?????????? | | ??????????????????????????????? ?????????? | | ?????????????????????????????????? ??????????? | | ???????????????????????????????????? ????????????? | | ?????????????????????????????????????????????????? | | ?????????????????????????????????????????????????? | | ?????????????????????????????????????????????????? | | ?????????????????????????????????????????????????? | | ?????????????????????????????????????????????????? | +----------------------------------------------------+ Best States ------------- Heat Dissipation 25 Energy Generation 12 Energy Capacity 265 Matter Stores 300 Matter Capacity 300 Sight Range 16 Terrain Scan Density 10 Armor Coverage 150 Evasion (%) 55 Item Schematics ----------------- None Robot Schematics ------------------ None Fabricated ------------ Nothing Alien Tech Used ----------------- None Achievements -------------- None Challenges ------------ None Game ------ Seed CloakSpacefoldCore Manual? 0 Play Time 00:21:40 Cumulative 77.1 hours Start 2023.11.10 @ 13:11:27 End 2023.11.10 @ 13:29:59 Sessions 1 Manual Loads 0 Difficulty Rogue Special Mode None Game No. 22 Rogue 22 Adventurer 0 Explorer 0 Win Type - Total 4 Types 3/0/1/0/0/0/0/0/0 Lore% 52 Gallery% 61 Achievement% 57 Wizard Run 0 Options --------- ASCII 0 Keyboard 1 Movement Numpad Keybinds 0 Fullscreen 1 Font 12/Terminus Map View 83x54 Tactical HUD 1 Map Filters NONE Filters NONE Steam 0 RUN: 1db76805-ea86-4940-aa17-3e403200798b